{"text_format":"3","workbook":"xlsx","n_sheets":2,"sheets":["INIZIO","BUDGET PERSONALE"],"not_rendered":{"defined_names":2},"read":"whole","date_system":"1900"}

{"sheet":"INIZIO","index":0,"n_rows":7,"n_cols":2,"rows_kept":7}
[null,"Informazioni sul modello"]
[null,"Questo modello consente di gestire i budget mensili e annuali."]
[null,"Immettere le ricavi e le spese nelle rispettive tabelle per calcolare l’ammanco o il surplus di cassa per ogni mese e anno."]
[null,"I grafici sparkline vengono aggiornati automaticamente in ogni tabella."]
[null,"Nota: "]
[null,"Altre istruzioni sono state fornite nella colonna A nel foglio di lavoro BUDGET PERSONALE. Questo testo è stato nascosto intenzionalmente. Per rimuovere il testo, selezionare la colonna A, quindi scegliere ELIMINA. Per visualizzare il testo, selezionare la colonna A, quindi modificare il colore del carattere."]
[null,"Per ulteriori informazioni sulle tabelle, premere MAIUSC, quindi F10 in una tabella, selezionare l'opzione TABELLA, quindi selezionare TESTO ALTERNATIVO."]

{"sheet":"BUDGET PERSONALE","index":1,"n_rows":107,"n_cols":17,"rows_kept":107,"merged":[[1,1,1,3],[1,4,1,15],[27,2,27,16],[36,2,36,16],[43,2,43,16],[53,2,53,16],[62,2,62,16],[69,2,69,16],[79,2,79,16],[87,2,87,16],[95,2,95,16],[103,2,103,16]]}
["Creare un budget personale semplice in questo foglio di lavoro. Nelle celle di questa colonna sono disponibili istruzioni utili per l'uso di questo foglio di lavoro. Freccia verso il basso per iniziare."]
["Il titolo di questo foglio di lavoro è nella cella a destra. Immettere l'anno nella cella Q2. L’istruzione successiva si trova nella cella A4.","BUDGET PERSONALE",{"$nulls":14},{"$f":"YEAR(TODAY())","v":2019}]
[]
["Le etichette si trovano nelle celle da C4 a P4.",null,"RICAVI","GEN","FEB","MAR","APR","MAG","GIU","LUG","AGO","SET","OTT","NOV","DIC","ANNO"]
["Immettere i dettagli nella tabella Entrate a partire dalla cella C5. L'istruzione successiva si trova nella cella A11.",null,"ENTRATE","Gennaio","Febbraio","Marzo","Aprile","Maggio","Giugno","Luglio","Agosto","Settembre","Ottobre","Novembre","Dicembre","Anno","Sparkline"]
[null,null,"Stipendi",{"v":2600,"d":"€ 2,600.00"},{"v":2600,"d":"€ 2,600.00"},{"v":2600,"d":"€ 2,600.00"},{"$nulls":9},{"$f":"SUM(Entrate[[#This Row],[Gennaio]:[Dicembre]])","v":{"v":7800,"d":"€ 7,800.00"}}]
[null,null,"Interesse/dividendi",{"v":649,"d":"€ 649.00"},{"v":313,"d":"€ 313.00"},{"v":664,"d":"€ 664.00"},{"$nulls":9},{"$f":"SUM(Entrate[[#This Row],[Gennaio]:[Dicembre]])","v":{"v":1626,"d":"€ 1,626.00"}}]
[null,null,"Varie",{"v":474,"d":"€ 474.00"},{"v":643,"d":"€ 643.00"},{"v":380,"d":"€ 380.00"},{"$nulls":9},{"$f":"SUM(Entrate[[#This Row],[Gennaio]:[Dicembre]])","v":{"v":1497,"d":"€ 1,497.00"}}]
[null,null,"Totale",{"$f":"SUBTOTAL(109,Entrate[Gennaio])","v":{"v":3723,"d":"€ 3,723.00"}},{"$f":"SUBTOTAL(109,Entrate[Febbraio])","v":{"v":3556,"d":"€ 3,556.00"}},{"$f":"SUBTOTAL(109,Entrate[Marzo])","v":{"v":3644,"d":"€ 3,644.00"}},{"$f":"SUBTOTAL(109,Entrate[Aprile])","v":{"v":0,"d":"€ 0.00"}},{"$f":"SUBTOTAL(109,Entrate[Maggio])","v":{"v":0,"d":"€ 0.00"}},{"$f":"SUBTOTAL(109,Entrate[Giugno])","v":{"v":0,"d":"€ 0.00"}},{"$f":"SUBTOTAL(109,Entrate[Luglio])","v":{"v":0,"d":"€ 0.00"}},{"$f":"SUBTOTAL(109,Entrate[Agosto])","v":{"v":0,"d":"€ 0.00"}},{"$f":"SUBTOTAL(109,Entrate[Settembre])","v":{"v":0,"d":"€ 0.00"}},{"$f":"SUBTOTAL(109,Entrate[Ottobre])","v":{"v":0,"d":"€ 0.00"}},{"$f":"SUBTOTAL(109,Entrate[Novembre])","v":{"v":0,"d":"€ 0.00"}},{"$f":"SUBTOTAL(109,Entrate[Dicembre])","v":{"v":0,"d":"€ 0.00"}},{"$f":"SUBTOTAL(109,Entrate[Anno])","v":{"v":10923,"d":"€ 10,923.00"}}]
[]
["Le etichette si trovano nelle celle da C11 a P11.",null,"SPESE","GEN","FEB","MAR","APR","MAG","GIU","LUG","AGO","SET","OTT","NOV","DIC","ANNO"]
["Immettere le spese per la casa nella tabella a partire dalla cella C12. L'istruzione successiva si trova nella cella A20.",null,"CASA","Gennaio","Febbraio","Marzo","Aprile","Mag","Giugno","Luglio","Agosto","Settembre","Ottobre","Novembre","Dicembre","Anno","Sparkline"]
[null,null,"Mutuo",{"v":750,"d":"€ 750.00"},{"v":750,"d":"€ 750.00"},{"v":750,"d":"€ 750.00"},{"$nulls":9},{"$f":"SUM(Casa[[#This Row],[Gennaio]:[Dicembre]])","v":{"v":2250,"d":"€ 2,250.00"}}]
[null,null,"Assicurazione",{"$nulls":12},{"$f":"SUM(Casa[[#This Row],[Gennaio]:[Dicembre]])","v":{"v":0,"d":"€ 0.00"}}]
[null,null,"Riparazioni",null,null,{"v":75,"d":"€ 75.00"},{"$nulls":9},{"$f":"SUM(Casa[[#This Row],[Gennaio]:[Dicembre]])","v":{"v":75,"d":"€ 75.00"}}]
[null,null,"Servizi",{"v":35,"d":"€ 35.00"},{"v":35,"d":"€ 35.00"},{"v":35,"d":"€ 35.00"},{"$nulls":9},{"$f":"SUM(Casa[[#This Row],[Gennaio]:[Dicembre]])","v":{"v":105,"d":"€ 105.00"}}]
[null,null,"Utenze",{"v":165,"d":"€ 165.00"},{"v":165,"d":"€ 165.00"},{"v":165,"d":"€ 165.00"},{"$nulls":9},{"$f":"SUM(Casa[[#This Row],[Gennaio]:[Dicembre]])","v":{"v":495,"d":"€ 495.00"}}]
[null,null,"Totale",{"$f":"SUBTOTAL(109,Casa[Gennaio])","v":{"v":950,"d":"€ 950.00"}},{"$f":"SUBTOTAL(109,Casa[Febbraio])","v":{"v":950,"d":"€ 950.00"}},{"$f":"SUBTOTAL(109,Casa[Marzo])","v":{"v":1025,"d":"€ 1,025.00"}},{"$f":"SUBTOTAL(109,Casa[Aprile])","v":{"v":0,"d":"€ 0.00"}},{"$f":"SUBTOTAL(109,Casa[Mag])","v":{"v":0,"d":"€ 0.00"}},{"$f":"SUBTOTAL(109,Casa[Giugno])","v":{"v":0,"d":"€ 0.00"}},{"$f":"SUBTOTAL(109,Casa[Luglio])","v":{"v":0,"d":"€ 0.00"}},{"$f":"SUBTOTAL(109,Casa[Agosto])","v":{"v":0,"d":"€ 0.00"}},{"$f":"SUBTOTAL(109,Casa[Settembre])","v":{"v":0,"d":"€ 0.00"}},{"$f":"SUBTOTAL(109,Casa[Ottobre])","v":{"v":0,"d":"€ 0.00"}},{"$f":"SUBTOTAL(109,Casa[Novembre])","v":{"v":0,"d":"€ 0.00"}},{"$f":"SUBTOTAL(109,Casa[Dicembre])","v":{"v":0,"d":"€ 0.00"}},{"$f":"SUBTOTAL(109,Casa[Anno])","v":{"v":2925,"d":"€ 2,925.00"}}]
[]
["Immettere le spese giornaliere nella tabella a partire dalla cella C20. L'istruzione successiva si trova nella cella A29.",null,"ATTIVITÀ QUOTIDIANE","Gennaio","Febbraio","Marzo","Aprile","Mag","Giugno","Luglio","Agosto","Settembre","Ottobre","Novembre","Dicembre","Anno","Sparkline"]
[null,null,"Generi alimentari ",{"v":191,"d":"€ 191.00"},{"v":152,"d":"€ 152.00"},{"v":145,"d":"€ 145.00"},{"$nulls":9},{"$f":"SUM(Giornaliere[[#This Row],[Gennaio]:[Dicembre]])","v":{"v":488,"d":"€ 488.00"}}]
[null,null,"Assistenza bambini",{"v":200,"d":"€ 200.00"},{"v":200,"d":"€ 200.00"},{"v":200,"d":"€ 200.00"},{"$nulls":9},{"$f":"SUM(Giornaliere[[#This Row],[Gennaio]:[Dicembre]])","v":{"v":600,"d":"€ 600.00"}}]
[null,null,"Lavanderia",{"v":20,"d":"€ 20.00"},null,{"v":20,"d":"€ 20.00"},{"$nulls":9},{"$f":"SUM(Giornaliere[[#This Row],[Gennaio]:[Dicembre]])","v":{"v":40,"d":"€ 40.00"}}]
[null,null,"Cene fuori",{"v":55,"d":"€ 55.00"},null,{"v":56,"d":"€ 56.00"},{"$nulls":9},{"$f":"SUM(Giornaliere[[#This Row],[Gennaio]:[Dicembre]])","v":{"v":111,"d":"€ 111.00"}}]
[null,null,"Servizio pulizie",{"v":25,"d":"€ 25.00"},{"v":17,"d":"€ 17.00"},{"v":7,"d":"€ 7.00"},{"$nulls":9},{"$f":"SUM(Giornaliere[[#This Row],[Gennaio]:[Dicembre]])","v":{"v":49,"d":"€ 49.00"}}]
[null,null,"Dog sitter",{"v":10,"d":"€ 10.00"},{"v":5,"d":"€ 5.00"},{"v":7,"d":"€ 7.00"},{"$nulls":9},{"$f":"SUM(Giornaliere[[#This Row],[Gennaio]:[Dicembre]])","v":{"v":22,"d":"€ 22.00"}}]
[null,null,"Totale",{"$f":"SUBTOTAL(109,Giornaliere[Gennaio])","v":{"v":501,"d":"€ 501.00"}},{"$f":"SUBTOTAL(109,Giornaliere[Febbraio])","v":{"v":374,"d":"€ 374.00"}},{"$f":"SUBTOTAL(109,Giornaliere[Marzo])","v":{"v":435,"d":"€ 435.00"}},{"$f":"SUBTOTAL(109,Giornaliere[Aprile])","v":{"v":0,"d":"€ 0.00"}},{"$f":"SUBTOTAL(109,Giornaliere[Mag])","v":{"v":0,"d":"€ 0.00"}},{"$f":"SUBTOTAL(109,Giornaliere[Giugno])","v":{"v":0,"d":"€ 0.00"}},{"$f":"SUBTOTAL(109,Giornaliere[Luglio])","v":{"v":0,"d":"€ 0.00"}},{"$f":"SUBTOTAL(109,Giornaliere[Agosto])","v":{"v":0,"d":"€ 0.00"}},{"$f":"SUBTOTAL(109,Giornaliere[Settembre])","v":{"v":0,"d":"€ 0.00"}},{"$f":"SUBTOTAL(109,Giornaliere[Ottobre])","v":{"v":0,"d":"€ 0.00"}},{"$f":"SUBTOTAL(109,Giornaliere[Novembre])","v":{"v":0,"d":"€ 0.00"}},{"$f":"SUBTOTAL(109,Giornaliere[Dicembre])","v":{"v":0,"d":"€ 0.00"}},{"$f":"SUBTOTAL(109,Giornaliere[Anno])","v":{"v":1310,"d":"€ 1,310.00"}}]
[]
["Immettere le spese per i trasporti nella tabella a partire dalla cella C29. L'istruzione successiva si trova nella cella A38.",null,"TRASPORTI","Gennaio","Febbraio","Marzo","Aprile","Mag","Giugno","Luglio","Agosto","Settembre","Ottobre","Novembre","Dicembre","Anno","Sparkline"]
[null,null,"Benzina/carburante",{"v":195,"d":"€ 195.00"},{"v":125,"d":"€ 125.00"},{"v":171,"d":"€ 171.00"},{"$nulls":9},{"$f":"SUM(Trasporti[[#This Row],[Gennaio]:[Dicembre]])","v":{"v":491,"d":"€ 491.00"}}]
[null,null,"Assicurazione",{"v":165,"d":"€ 165.00"},{"v":165,"d":"€ 165.00"},{"v":165,"d":"€ 165.00"},{"$nulls":9},{"$f":"SUM(Trasporti[[#This Row],[Gennaio]:[Dicembre]])","v":{"v":495,"d":"€ 495.00"}}]
[null,null,"Riparazioni",{"$nulls":12},{"$f":"SUM(Trasporti[[#This Row],[Gennaio]:[Dicembre]])","v":{"v":0,"d":"€ 0.00"}}]
[null,null,"Lavaggio auto/servizi annessi",{"v":10,"d":"€ 10.00"},{"$nulls":11},{"$f":"SUM(Trasporti[[#This Row],[Gennaio]:[Dicembre]])","v":{"v":10,"d":"€ 10.00"}}]
[null,null,"Parcheggio",{"v":10,"d":"€ 10.00"},{"v":40,"d":"€ 40.00"},{"v":20,"d":"€ 20.00"},{"$nulls":9},{"$f":"SUM(Trasporti[[#This Row],[Gennaio]:[Dicembre]])","v":{"v":70,"d":"€ 70.00"}}]
[null,null,"Trasporti pubblici",{"v":20,"d":"€ 20.00"},{"v":40,"d":"€ 40.00"},{"v":30,"d":"€ 30.00"},{"$nulls":9},{"$f":"SUM(Trasporti[[#This Row],[Gennaio]:[Dicembre]])","v":{"v":90,"d":"€ 90.00"}}]
[null,null,"Totale",{"$f":"SUBTOTAL(109,Trasporti[Gennaio])","v":{"v":400,"d":"€ 400.00"}},{"$f":"SUBTOTAL(109,Trasporti[Febbraio])","v":{"v":370,"d":"€ 370.00"}},{"$f":"SUBTOTAL(109,Trasporti[Marzo])","v":{"v":386,"d":"€ 386.00"}},{"$f":"SUBTOTAL(109,Trasporti[Aprile])","v":{"v":0,"d":"€ 0.00"}},{"$f":"SUBTOTAL(109,Trasporti[Mag])","v":{"v":0,"d":"€ 0.00"}},{"$f":"SUBTOTAL(109,Trasporti[Giugno])","v":{"v":0,"d":"€ 0.00"}},{"$f":"SUBTOTAL(109,Trasporti[Luglio])","v":{"v":0,"d":"€ 0.00"}},{"$f":"SUBTOTAL(109,Trasporti[Agosto])","v":{"v":0,"d":"€ 0.00"}},{"$f":"SUBTOTAL(109,Trasporti[Settembre])","v":{"v":0,"d":"€ 0.00"}},{"$f":"SUBTOTAL(109,Trasporti[Ottobre])","v":{"v":0,"d":"€ 0.00"}},{"$f":"SUBTOTAL(109,Trasporti[Novembre])","v":{"v":0,"d":"€ 0.00"}},{"$f":"SUBTOTAL(109,Trasporti[Dicembre])","v":{"v":0,"d":"€ 0.00"}},{"$f":"SUBTOTAL(109,Trasporti[Anno])","v":{"v":1156,"d":"€ 1,156.00"}}]
[]
["Immettere le spese di svago nella tabella a partire dalla cella C38. L’istruzione successiva si trova nella cella A45.",null,"SVAGO","Gennaio","Febbraio","Marzo","Aprile","Mag","Giugno","Luglio","Agosto","Settembre","Ottobre","Novembre","Dicembre","Anno","Sparkline"]
[null,null,"Pay TV",{"v":85,"d":"€ 85.00"},{"v":85,"d":"€ 85.00"},{"v":85,"d":"€ 85.00"},{"$nulls":9},{"$f":"SUM(Tempo_libero[[#This Row],[Gennaio]:[Dicembre]])","v":{"v":255,"d":"€ 255.00"}}]
[null,null,"Noleggio video/DVD",{"v":7,"d":"€ 7.00"},{"v":8,"d":"€ 8.00"},{"v":9,"d":"€ 9.00"},{"$nulls":9},{"$f":"SUM(Tempo_libero[[#This Row],[Gennaio]:[Dicembre]])","v":{"v":24,"d":"€ 24.00"}}]
[null,null,"Cinema/teatro",{"v":9,"d":"€ 9.00"},{"v":5,"d":"€ 5.00"},{"v":9,"d":"€ 9.00"},{"$nulls":9},{"$f":"SUM(Tempo_libero[[#This Row],[Gennaio]:[Dicembre]])","v":{"v":23,"d":"€ 23.00"}}]
[null,null,"Concerti/discoteche",{"v":5,"d":"€ 5.00"},{"v":5,"d":"€ 5.00"},{"v":7,"d":"€ 7.00"},{"$nulls":9},{"$f":"SUM(Tempo_libero[[#This Row],[Gennaio]:[Dicembre]])","v":{"v":17,"d":"€ 17.00"}}]
[null,null,"Totale",{"$f":"SUBTOTAL(109,Tempo_libero[Gennaio])","v":{"v":106,"d":"€ 106.00"}},{"$f":"SUBTOTAL(109,Tempo_libero[Febbraio])","v":{"v":103,"d":"€ 103.00"}},{"$f":"SUBTOTAL(109,Tempo_libero[Marzo])","v":{"v":110,"d":"€ 110.00"}},{"$f":"SUBTOTAL(109,Tempo_libero[Aprile])","v":{"v":0,"d":"€ 0.00"}},{"$f":"SUBTOTAL(109,Tempo_libero[Mag])","v":{"v":0,"d":"€ 0.00"}},{"$f":"SUBTOTAL(109,Tempo_libero[Giugno])","v":{"v":0,"d":"€ 0.00"}},{"$f":"SUBTOTAL(109,Tempo_libero[Luglio])","v":{"v":0,"d":"€ 0.00"}},{"$f":"SUBTOTAL(109,Tempo_libero[Agosto])","v":{"v":0,"d":"€ 0.00"}},{"$f":"SUBTOTAL(109,Tempo_libero[Settembre])","v":{"v":0,"d":"€ 0.00"}},{"$f":"SUBTOTAL(109,Tempo_libero[Ottobre])","v":{"v":0,"d":"€ 0.00"}},{"$f":"SUBTOTAL(109,Tempo_libero[Novembre])","v":{"v":0,"d":"€ 0.00"}},{"$f":"SUBTOTAL(109,Tempo_libero[Dicembre])","v":{"v":0,"d":"€ 0.00"}},{"$f":"SUBTOTAL(109,Tempo_libero[Anno])","v":{"v":319,"d":"€ 319.00"}}]
[]
["Immettere le spese per la salute nella tabella a partire dalla cella C45. L'istruzione successiva si trova nella cella A55.",null,"SALUTE","Gennaio","Febbraio","Marzo","Aprile","Mag","Giugno","Luglio","Agosto","Settembre","Ottobre","Novembre","Dicembre","Anno","Sparkline"]
[null,null,"Iscrizione palestra",{"v":50,"d":"€ 50.00"},{"v":50,"d":"€ 50.00"},{"v":50,"d":"€ 50.00"},{"$nulls":9},{"$f":"SUM(Salute[[#This Row],[Gennaio]:[Dicembre]])","v":{"v":150,"d":"€ 150.00"}}]
[null,null,"Assicurazione",{"v":225,"d":"€ 225.00"},{"v":225,"d":"€ 225.00"},{"v":225,"d":"€ 225.00"},{"$nulls":9},{"$f":"SUM(Salute[[#This Row],[Gennaio]:[Dicembre]])","v":{"v":675,"d":"€ 675.00"}}]
[null,null,"Ricette mediche",{"v":100,"d":"€ 100.00"},{"v":100,"d":"€ 100.00"},{"v":100,"d":"€ 100.00"},{"$nulls":9},{"$f":"SUM(Salute[[#This Row],[Gennaio]:[Dicembre]])","v":{"v":300,"d":"€ 300.00"}}]
[null,null,"Farmaci da banco",{"v":6,"d":"€ 6.00"},{"v":2,"d":"€ 2.00"},{"v":9,"d":"€ 9.00"},{"$nulls":9},{"$f":"SUM(Salute[[#This Row],[Gennaio]:[Dicembre]])","v":{"v":17,"d":"€ 17.00"}}]
[null,null,"Ticket sanitari",{"v":20,"d":"€ 20.00"},null,{"v":41,"d":"€ 41.00"},{"$nulls":9},{"$f":"SUM(Salute[[#This Row],[Gennaio]:[Dicembre]])","v":{"v":61,"d":"€ 61.00"}}]
[null,null,"Veterinario/medicine animali",{"v":4,"d":"€ 4.00"},null,{"v":25,"d":"€ 25.00"},{"$nulls":9},{"$f":"SUM(Salute[[#This Row],[Gennaio]:[Dicembre]])","v":{"v":29,"d":"€ 29.00"}}]
[null,null,"Assicurazione vita",{"v":55,"d":"€ 55.00"},{"v":55,"d":"€ 55.00"},{"v":55,"d":"€ 55.00"},{"$nulls":9},{"$f":"SUM(Salute[[#This Row],[Gennaio]:[Dicembre]])","v":{"v":165,"d":"€ 165.00"}}]
[null,null,"Totale",{"$f":"SUBTOTAL(109,Salute[Gennaio])","v":{"v":460,"d":"€ 460.00"}},{"$f":"SUBTOTAL(109,Salute[Febbraio])","v":{"v":432,"d":"€ 432.00"}},{"$f":"SUBTOTAL(109,Salute[Marzo])","v":{"v":505,"d":"€ 505.00"}},{"$f":"SUBTOTAL(109,Salute[Aprile])","v":{"v":0,"d":"€ 0.00"}},{"$f":"SUBTOTAL(109,Salute[Mag])","v":{"v":0,"d":"€ 0.00"}},{"$f":"SUBTOTAL(109,Salute[Giugno])","v":{"v":0,"d":"€ 0.00"}},{"$f":"SUBTOTAL(109,Salute[Luglio])","v":{"v":0,"d":"€ 0.00"}},{"$f":"SUBTOTAL(109,Salute[Agosto])","v":{"v":0,"d":"€ 0.00"}},{"$f":"SUBTOTAL(109,Salute[Settembre])","v":{"v":0,"d":"€ 0.00"}},{"$f":"SUBTOTAL(109,Salute[Ottobre])","v":{"v":0,"d":"€ 0.00"}},{"$f":"SUBTOTAL(109,Salute[Novembre])","v":{"v":0,"d":"€ 0.00"}},{"$f":"SUBTOTAL(109,Salute[Dicembre])","v":{"v":0,"d":"€ 0.00"}},{"$f":"SUBTOTAL(109,Salute[Anno])","v":{"v":1397,"d":"€ 1,397.00"}}]
[]
["Immettere le spese per le vacanze nella tabella a partire dalla cella C55. L'istruzione successiva si trova nella cella A64.",null,"VACANZE","Gennaio","Febbraio","Marzo","Aprile","Mag","Giugno","Luglio","Agosto","Settembre","Ottobre","Novembre","Dicembre","Anno","Sparkline"]
[null,null,"Biglietti aerei",null,{"v":485,"d":"€ 485.00"},{"$nulls":10},{"$f":"SUM(Vacanze[[#This Row],[Gennaio]:[Dicembre]])","v":{"v":485,"d":"€ 485.00"}}]
[null,null,"Alloggio",null,{"v":245,"d":"€ 245.00"},{"$nulls":10},{"$f":"SUM(Vacanze[[#This Row],[Gennaio]:[Dicembre]])","v":{"v":245,"d":"€ 245.00"}}]
[null,null,"Cibo",null,{"v":95,"d":"€ 95.00"},{"$nulls":10},{"$f":"SUM(Vacanze[[#This Row],[Gennaio]:[Dicembre]])","v":{"v":95,"d":"€ 95.00"}}]
[null,null,"Souvenir",{"$nulls":12},{"$f":"SUM(Vacanze[[#This Row],[Gennaio]:[Dicembre]])","v":{"v":0,"d":"€ 0.00"}}]
[null,null,"Pensione per animali",{"$nulls":12},{"$f":"SUM(Vacanze[[#This Row],[Gennaio]:[Dicembre]])","v":{"v":0,"d":"€ 0.00"}}]
[null,null,"Noleggio auto",null,{"v":85,"d":"€ 85.00"},{"$nulls":10},{"$f":"SUM(Vacanze[[#This Row],[Gennaio]:[Dicembre]])","v":{"v":85,"d":"€ 85.00"}}]
[null,null,"Totale",{"$f":"SUBTOTAL(109,Vacanze[Gennaio])","v":{"v":0,"d":"€ 0.00"}},{"$f":"SUBTOTAL(109,Vacanze[Febbraio])","v":{"v":910,"d":"€ 910.00"}},{"$f":"SUBTOTAL(109,Vacanze[Marzo])","v":{"v":0,"d":"€ 0.00"}},{"$f":"SUBTOTAL(109,Vacanze[Aprile])","v":{"v":0,"d":"€ 0.00"}},{"$f":"SUBTOTAL(109,Vacanze[Mag])","v":{"v":0,"d":"€ 0.00"}},{"$f":"SUBTOTAL(109,Vacanze[Giugno])","v":{"v":0,"d":"€ 0.00"}},{"$f":"SUBTOTAL(109,Vacanze[Luglio])","v":{"v":0,"d":"€ 0.00"}},{"$f":"SUBTOTAL(109,Vacanze[Agosto])","v":{"v":0,"d":"€ 0.00"}},{"$f":"SUBTOTAL(109,Vacanze[Settembre])","v":{"v":0,"d":"€ 0.00"}},{"$f":"SUBTOTAL(109,Vacanze[Ottobre])","v":{"v":0,"d":"€ 0.00"}},{"$f":"SUBTOTAL(109,Vacanze[Novembre])","v":{"v":0,"d":"€ 0.00"}},{"$f":"SUBTOTAL(109,Vacanze[Dicembre])","v":{"v":0,"d":"€ 0.00"}},{"$f":"SUBTOTAL(109,Vacanze[Anno])","v":{"v":910,"d":"€ 910.00"}}]
[]
["Immettere le spese per il tempo libero nella tabella a partire dalla cella C64. L'istruzione successiva si trova nella cella A71.",null,"TEMPO LIBERO","Gennaio","Febbraio","Marzo","Aprile","Mag","Giugno","Luglio","Agosto","Settembre","Ottobre","Novembre","Dicembre","Anno","Sparkline"]
[null,null,"Quota palestra",{"$nulls":12},{"$f":"SUM(Svago[[#This Row],[Gennaio]:[Dicembre]])","v":{"v":0,"d":"€ 0.00"}}]
[null,null,"Attrezzature sportive",{"$nulls":12},{"$f":"SUM(Svago[[#This Row],[Gennaio]:[Dicembre]])","v":{"v":0,"d":"€ 0.00"}}]
[null,null,"Spese associative",{"$nulls":12},{"$f":"SUM(Svago[[#This Row],[Gennaio]:[Dicembre]])","v":{"v":0,"d":"€ 0.00"}}]
[null,null,"Giocattoli/attrezzature figlio",{"v":39,"d":"€ 39.00"},{"v":33,"d":"€ 33.00"},{"v":40,"d":"€ 40.00"},{"$nulls":9},{"$f":"SUM(Svago[[#This Row],[Gennaio]:[Dicembre]])","v":{"v":112,"d":"€ 112.00"}}]
[null,null,"Totale",{"$f":"SUBTOTAL(109,Svago[Gennaio])","v":{"v":39,"d":"€ 39.00"}},{"$f":"SUBTOTAL(109,Svago[Febbraio])","v":{"v":33,"d":"€ 33.00"}},{"$f":"SUBTOTAL(109,Svago[Marzo])","v":{"v":40,"d":"€ 40.00"}},{"$f":"SUBTOTAL(109,Svago[Aprile])","v":{"v":0,"d":"€ 0.00"}},{"$f":"SUBTOTAL(109,Svago[Mag])","v":{"v":0,"d":"€ 0.00"}},{"$f":"SUBTOTAL(109,Svago[Giugno])","v":{"v":0,"d":"€ 0.00"}},{"$f":"SUBTOTAL(109,Svago[Luglio])","v":{"v":0,"d":"€ 0.00"}},{"$f":"SUBTOTAL(109,Svago[Agosto])","v":{"v":0,"d":"€ 0.00"}},{"$f":"SUBTOTAL(109,Svago[Settembre])","v":{"v":0,"d":"€ 0.00"}},{"$f":"SUBTOTAL(109,Svago[Ottobre])","v":{"v":0,"d":"€ 0.00"}},{"$f":"SUBTOTAL(109,Svago[Novembre])","v":{"v":0,"d":"€ 0.00"}},{"$f":"SUBTOTAL(109,Svago[Dicembre])","v":{"v":0,"d":"€ 0.00"}},{"$f":"SUBTOTAL(109,Svago[Anno])","v":{"v":112,"d":"€ 112.00"}}]
[]
["Immettere le spese nella tabella Quote e abbonamenti a partire dalla cella C71. L'istruzione successiva si trova nella cella A81.",null,"QUOTE/ABBONAMENTI","Gennaio","Febbraio","Marzo","Aprile","Mag","Giugno","Luglio","Agosto","Settembre","Ottobre","Novembre","Dicembre","Anno","Sparkline"]
[null,null,"Riviste",{"$nulls":12},{"$f":"SUM(QuoteeAbbonamenti[[#This Row],[Gennaio]:[Dicembre]])","v":{"v":0,"d":"€ 0.00"}}]
[null,null,"Giornali",{"$nulls":12},{"$f":"SUM(QuoteeAbbonamenti[[#This Row],[Gennaio]:[Dicembre]])","v":{"v":0,"d":"€ 0.00"}}]
[null,null,"Connessione Internet",{"$nulls":12},{"$f":"SUM(QuoteeAbbonamenti[[#This Row],[Gennaio]:[Dicembre]])","v":{"v":0,"d":"€ 0.00"}}]
[null,null,"Radio pubblica",{"$nulls":12},{"$f":"SUM(QuoteeAbbonamenti[[#This Row],[Gennaio]:[Dicembre]])","v":{"v":0,"d":"€ 0.00"}}]
[null,null,"Televisione pubblica",{"$nulls":12},{"$f":"SUM(QuoteeAbbonamenti[[#This Row],[Gennaio]:[Dicembre]])","v":{"v":0,"d":"€ 0.00"}}]
[null,null,"Organizzazioni religiose",{"v":29,"d":"€ 29.00"},{"v":18,"d":"€ 18.00"},{"v":17,"d":"€ 17.00"},{"$nulls":9},{"$f":"SUM(QuoteeAbbonamenti[[#This Row],[Gennaio]:[Dicembre]])","v":{"v":64,"d":"€ 64.00"}}]
[null,null,"Beneficenza",{"$nulls":12},{"$f":"SUM(QuoteeAbbonamenti[[#This Row],[Gennaio]:[Dicembre]])","v":{"v":0,"d":"€ 0.00"}}]
[null,null,"Totale",{"$f":"SUBTOTAL(109,QuoteeAbbonamenti[Gennaio])","v":{"v":29,"d":"€ 29.00"}},{"$f":"SUBTOTAL(109,QuoteeAbbonamenti[Febbraio])","v":{"v":18,"d":"€ 18.00"}},{"$f":"SUBTOTAL(109,QuoteeAbbonamenti[Marzo])","v":{"v":17,"d":"€ 17.00"}},{"$f":"SUBTOTAL(109,QuoteeAbbonamenti[Aprile])","v":{"v":0,"d":"€ 0.00"}},{"$f":"SUBTOTAL(109,QuoteeAbbonamenti[Mag])","v":{"v":0,"d":"€ 0.00"}},{"$f":"SUBTOTAL(109,QuoteeAbbonamenti[Giugno])","v":{"v":0,"d":"€ 0.00"}},{"$f":"SUBTOTAL(109,QuoteeAbbonamenti[Luglio])","v":{"v":0,"d":"€ 0.00"}},{"$f":"SUBTOTAL(109,QuoteeAbbonamenti[Agosto])","v":{"v":0,"d":"€ 0.00"}},{"$f":"SUBTOTAL(109,QuoteeAbbonamenti[Settembre])","v":{"v":0,"d":"€ 0.00"}},{"$f":"SUBTOTAL(109,QuoteeAbbonamenti[Ottobre])","v":{"v":0,"d":"€ 0.00"}},{"$f":"SUBTOTAL(109,QuoteeAbbonamenti[Novembre])","v":{"v":0,"d":"€ 0.00"}},{"$f":"SUBTOTAL(109,QuoteeAbbonamenti[Dicembre])","v":{"v":0,"d":"€ 0.00"}},{"$f":"SUBTOTAL(109,QuoteeAbbonamenti[Anno])","v":{"v":64,"d":"€ 64.00"}}]
[]
["Immettere le spese personali nella tabella a partire dalla cella C81. L'istruzione successiva si trova nella cella A89.",null,"PERSONALI","Gennaio","Febbraio","Marzo","Aprile","Mag","Giugno","Luglio","Agosto","Settembre","Ottobre","Novembre","Dicembre","Anno","Sparkline"]
[null,null,"Abbigliamento",null,null,{"v":29,"d":"€ 29.00"},{"$nulls":9},{"$f":"SUM(Personale[[#This Row],[Gennaio]:[Dicembre]])","v":{"v":29,"d":"€ 29.00"}}]
[null,null,"Regali",null,{"v":35,"d":"€ 35.00"},{"$nulls":10},{"$f":"SUM(Personale[[#This Row],[Gennaio]:[Dicembre]])","v":{"v":35,"d":"€ 35.00"}}]
[null,null,"Parrucchiere/barbiere",{"v":25,"d":"€ 25.00"},{"v":25,"d":"€ 25.00"},{"v":25,"d":"€ 25.00"},{"$nulls":9},{"$f":"SUM(Personale[[#This Row],[Gennaio]:[Dicembre]])","v":{"v":75,"d":"€ 75.00"}}]
[null,null,"Libri",{"$nulls":12},{"$f":"SUM(Personale[[#This Row],[Gennaio]:[Dicembre]])","v":{"v":0,"d":"€ 0.00"}}]
[null,null,"Musica (CD e così via)",{"$nulls":12},{"$f":"SUM(Personale[[#This Row],[Gennaio]:[Dicembre]])","v":{"v":0,"d":"€ 0.00"}}]
[null,null,"Totale",{"$f":"SUBTOTAL(109,Personale[Gennaio])","v":{"v":25,"d":"€ 25.00"}},{"$f":"SUBTOTAL(109,Personale[Febbraio])","v":{"v":60,"d":"€ 60.00"}},{"$f":"SUBTOTAL(109,Personale[Marzo])","v":{"v":54,"d":"€ 54.00"}},{"$f":"SUBTOTAL(109,Personale[Aprile])","v":{"v":0,"d":"€ 0.00"}},{"$f":"SUBTOTAL(109,Personale[Mag])","v":{"v":0,"d":"€ 0.00"}},{"$f":"SUBTOTAL(109,Personale[Giugno])","v":{"v":0,"d":"€ 0.00"}},{"$f":"SUBTOTAL(109,Personale[Luglio])","v":{"v":0,"d":"€ 0.00"}},{"$f":"SUBTOTAL(109,Personale[Agosto])","v":{"v":0,"d":"€ 0.00"}},{"$f":"SUBTOTAL(109,Personale[Settembre])","v":{"v":0,"d":"€ 0.00"}},{"$f":"SUBTOTAL(109,Personale[Ottobre])","v":{"v":0,"d":"€ 0.00"}},{"$f":"SUBTOTAL(109,Personale[Novembre])","v":{"v":0,"d":"€ 0.00"}},{"$f":"SUBTOTAL(109,Personale[Dicembre])","v":{"v":0,"d":"€ 0.00"}},{"$f":"SUBTOTAL(109,Personale[Anno])","v":{"v":139,"d":"€ 139.00"}}]
[]
["Immettere gli obblighi finanziari nella tabella a partire dalla cella C89. L'istruzione successiva si trova nella cella A97.",null,"OBBLIGHI FINANZIARI","Gennaio","Febbraio","Marzo","Aprile","Mag","Giugno","Luglio","Agosto","Settembre","Ottobre","Novembre","Dicembre","Anno","Sparkline"]
[null,null,"Risparmi a lungo termine",{"v":25,"d":"€ 25.00"},{"v":25,"d":"€ 25.00"},{"v":25,"d":"€ 25.00"},{"$nulls":9},{"$f":"SUM(Finanze[[#This Row],[Gennaio]:[Dicembre]])","v":{"v":75,"d":"€ 75.00"}}]
[null,null,"Fondo pensione",{"v":45,"d":"€ 45.00"},{"v":45,"d":"€ 45.00"},{"v":45,"d":"€ 45.00"},{"$nulls":9},{"$f":"SUM(Finanze[[#This Row],[Gennaio]:[Dicembre]])","v":{"v":135,"d":"€ 135.00"}}]
[null,null,"Pagamenti con carta di credito",{"v":75,"d":"€ 75.00"},{"v":75,"d":"€ 75.00"},{"v":75,"d":"€ 75.00"},{"$nulls":9},{"$f":"SUM(Finanze[[#This Row],[Gennaio]:[Dicembre]])","v":{"v":225,"d":"€ 225.00"}}]
[null,null,"Imposte sul reddito (aggiuntive)",{"$nulls":12},{"$f":"SUM(Finanze[[#This Row],[Gennaio]:[Dicembre]])","v":{"v":0,"d":"€ 0.00"}}]
[null,null,"Altri obblighi",{"v":32,"d":"€ 32.00"},{"v":34,"d":"€ 34.00"},{"v":1,"d":"€ 1.00"},{"$nulls":9},{"$f":"SUM(Finanze[[#This Row],[Gennaio]:[Dicembre]])","v":{"v":67,"d":"€ 67.00"}}]
[null,null,"Totale",{"$f":"SUBTOTAL(109,Finanze[Gennaio])","v":{"v":177,"d":"€ 177.00"}},{"$f":"SUBTOTAL(109,Finanze[Febbraio])","v":{"v":179,"d":"€ 179.00"}},{"$f":"SUBTOTAL(109,Finanze[Marzo])","v":{"v":146,"d":"€ 146.00"}},{"$f":"SUBTOTAL(109,Finanze[Aprile])","v":{"v":0,"d":"€ 0.00"}},{"$f":"SUBTOTAL(109,Finanze[Mag])","v":{"v":0,"d":"€ 0.00"}},{"$f":"SUBTOTAL(109,Finanze[Giugno])","v":{"v":0,"d":"€ 0.00"}},{"$f":"SUBTOTAL(109,Finanze[Luglio])","v":{"v":0,"d":"€ 0.00"}},{"$f":"SUBTOTAL(109,Finanze[Agosto])","v":{"v":0,"d":"€ 0.00"}},{"$f":"SUBTOTAL(109,Finanze[Settembre])","v":{"v":0,"d":"€ 0.00"}},{"$f":"SUBTOTAL(109,Finanze[Ottobre])","v":{"v":0,"d":"€ 0.00"}},{"$f":"SUBTOTAL(109,Finanze[Novembre])","v":{"v":0,"d":"€ 0.00"}},{"$f":"SUBTOTAL(109,Finanze[Dicembre])","v":{"v":0,"d":"€ 0.00"}},{"$f":"SUBTOTAL(109,Finanze[Anno])","v":{"v":502,"d":"€ 502.00"}}]
[]
["Immettere i pagamenti vari nella tabella a partire dalla cella C97. L'istruzione successiva si trova nella cella A105.",null,"PAGAMENTI VARI","Gennaio","Febbraio","Marzo","Aprile","Maggio","Giugno","Luglio","Agosto","Settembre","Ottobre","Novembre","Dicembre","Anno","Sparkline"]
[null,null,"Altro",{"$nulls":12},{"$f":"SUM(Varie[[#This Row],[Gennaio]:[Dicembre]])","v":{"v":0,"d":"€ 0.00"}}]
[null,null,"Altro",{"$nulls":12},{"$f":"SUM(Varie[[#This Row],[Gennaio]:[Dicembre]])","v":{"v":0,"d":"€ 0.00"}}]
[null,null,"Altro",{"$nulls":12},{"$f":"SUM(Varie[[#This Row],[Gennaio]:[Dicembre]])","v":{"v":0,"d":"€ 0.00"}}]
[null,null,"Altro",{"$nulls":12},{"$f":"SUM(Varie[[#This Row],[Gennaio]:[Dicembre]])","v":{"v":0,"d":"€ 0.00"}}]
[null,null,"Altro",{"$nulls":12},{"$f":"SUM(Varie[[#This Row],[Gennaio]:[Dicembre]])","v":{"v":0,"d":"€ 0.00"}}]
[null,null,"Totale",{"$f":"SUBTOTAL(109,Varie[Gennaio])","v":{"v":0,"d":"€ 0.00"}},{"$f":"SUBTOTAL(109,Varie[Febbraio])","v":{"v":0,"d":"€ 0.00"}},{"$f":"SUBTOTAL(109,Varie[Marzo])","v":{"v":0,"d":"€ 0.00"}},{"$f":"SUBTOTAL(109,Varie[Aprile])","v":{"v":0,"d":"€ 0.00"}},{"$f":"SUBTOTAL(109,Varie[Maggio])","v":{"v":0,"d":"€ 0.00"}},{"$f":"SUBTOTAL(109,Varie[Giugno])","v":{"v":0,"d":"€ 0.00"}},{"$f":"SUBTOTAL(109,Varie[Luglio])","v":{"v":0,"d":"€ 0.00"}},{"$f":"SUBTOTAL(109,Varie[Agosto])","v":{"v":0,"d":"€ 0.00"}},{"$f":"SUBTOTAL(109,Varie[Settembre])","v":{"v":0,"d":"€ 0.00"}},{"$f":"SUBTOTAL(109,Varie[Ottobre])","v":{"v":0,"d":"€ 0.00"}},{"$f":"SUBTOTAL(109,Varie[Novembre])","v":{"v":0,"d":"€ 0.00"}},{"$f":"SUBTOTAL(109,Varie[Dicembre])","v":{"v":0,"d":"€ 0.00"}},{"$f":"SUBTOTAL(109,Varie[Anno])","v":{"v":0,"d":"€ 0.00"}}]
[]
["I totali vengono calcolati automaticamente nella tabella a partire dalla cella C105. Le totale uscite e l’ammanco o il surplus di cassa vengono calcolati automaticamente per ogni mese e anno intero e i grafici sparkline vengono aggiornati.",null,"TOTALI","GEN","FEB","MAR","APR","MAG","GIU","LUG","AGO","SET","OTT","NOV","DIC","ANNO","SPARKLINE"]
[null,null,"Totale uscite",{"$f":"SUM(Varie[[#Totals],[Gennaio]],Finanze[[#Totals],[Gennaio]],Personale[[#Totals],[Gennaio]],QuoteeAbbonamenti[[#Totals],[Gennaio]],Svago[[#Totals],[Gennaio]],Vacanze[[#Totals],[Gennaio]],Salute[[#Totals],[Gennaio]],Tempo_libero[[#Totals],[Gennaio]],Trasporti[[#Totals],[Gennaio]],Giornaliere[[#Totals],[Gennaio]],Casa[[#Totals],[Gennaio]])","v":{"v":2687,"d":"€ 2,687.00"}},{"$f":"SUM(Varie[[#Totals],[Febbraio]],Finanze[[#Totals],[Febbraio]],Personale[[#Totals],[Febbraio]],QuoteeAbbonamenti[[#Totals],[Febbraio]],Svago[[#Totals],[Febbraio]],Vacanze[[#Totals],[Febbraio]],Salute[[#Totals],[Febbraio]],Tempo_libero[[#Totals],[Febbraio]],Trasporti[[#Totals],[Febbraio]],Giornaliere[[#Totals],[Febbraio]],Casa[[#Totals],[Febbraio]])","v":{"v":3429,"d":"€ 3,429.00"}},{"$f":"SUM(Varie[[#Totals],[Marzo]],Finanze[[#Totals],[Marzo]],Personale[[#Totals],[Marzo]],QuoteeAbbonamenti[[#Totals],[Marzo]],Svago[[#Totals],[Marzo]],Vacanze[[#Totals],[Marzo]],Salute[[#Totals],[Marzo]],Tempo_libero[[#Totals],[Marzo]],Trasporti[[#Totals],[Marzo]],Giornaliere[[#Totals],[Marzo]],Casa[[#Totals],[Marzo]])","v":{"v":2718,"d":"€ 2,718.00"}},{"$f":"SUM(Varie[[#Totals],[Aprile]],Finanze[[#Totals],[Aprile]],Personale[[#Totals],[Aprile]],QuoteeAbbonamenti[[#Totals],[Aprile]],Svago[[#Totals],[Aprile]],Vacanze[[#Totals],[Aprile]],Salute[[#Totals],[Aprile]],Tempo_libero[[#Totals],[Aprile]],Trasporti[[#Totals],[Aprile]],Giornaliere[[#Totals],[Aprile]],Casa[[#Totals],[Aprile]])","v":{"v":0,"d":"€ 0.00"}},{"$f":"SUM(Varie[[#Totals],[Maggio]],Finanze[[#Totals],[Mag]],Personale[[#Totals],[Mag]],QuoteeAbbonamenti[[#Totals],[Mag]],Svago[[#Totals],[Mag]],Vacanze[[#Totals],[Mag]],Salute[[#Totals],[Mag]],Tempo_libero[[#Totals],[Mag]],Trasporti[[#Totals],[Mag]],Giornaliere[[#Totals],[Mag]],Casa[[#Totals],[Mag]])","v":{"v":0,"d":"€ 0.00"}},{"$f":"SUM(Varie[[#Totals],[Giugno]],Finanze[[#Totals],[Giugno]],Personale[[#Totals],[Giugno]],QuoteeAbbonamenti[[#Totals],[Giugno]],Svago[[#Totals],[Giugno]],Vacanze[[#Totals],[Giugno]],Salute[[#Totals],[Giugno]],Tempo_libero[[#Totals],[Giugno]],Trasporti[[#Totals],[Giugno]],Giornaliere[[#Totals],[Giugno]],Casa[[#Totals],[Giugno]])","v":{"v":0,"d":"€ 0.00"}},{"$f":"SUM(Varie[[#Totals],[Luglio]],Finanze[[#Totals],[Luglio]],Personale[[#Totals],[Luglio]],QuoteeAbbonamenti[[#Totals],[Luglio]],Svago[[#Totals],[Luglio]],Vacanze[[#Totals],[Luglio]],Salute[[#Totals],[Luglio]],Tempo_libero[[#Totals],[Luglio]],Trasporti[[#Totals],[Luglio]],Giornaliere[[#Totals],[Luglio]],Casa[[#Totals],[Luglio]])","v":{"v":0,"d":"€ 0.00"}},{"$f":"SUM(Varie[[#Totals],[Agosto]],Finanze[[#Totals],[Agosto]],Personale[[#Totals],[Agosto]],QuoteeAbbonamenti[[#Totals],[Agosto]],Svago[[#Totals],[Agosto]],Vacanze[[#Totals],[Agosto]],Salute[[#Totals],[Agosto]],Tempo_libero[[#Totals],[Agosto]],Trasporti[[#Totals],[Agosto]],Giornaliere[[#Totals],[Agosto]],Casa[[#Totals],[Agosto]])","v":{"v":0,"d":"€ 0.00"}},{"$f":"SUM(Varie[[#Totals],[Settembre]],Finanze[[#Totals],[Settembre]],Personale[[#Totals],[Settembre]],QuoteeAbbonamenti[[#Totals],[Settembre]],Svago[[#Totals],[Settembre]],Vacanze[[#Totals],[Settembre]],Salute[[#Totals],[Settembre]],Tempo_libero[[#Totals],[Settembre]],Trasporti[[#Totals],[Settembre]],Giornaliere[[#Totals],[Settembre]],Casa[[#Totals],[Settembre]])","v":{"v":0,"d":"€ 0.00"}},{"$f":"SUM(Varie[[#Totals],[Ottobre]],Finanze[[#Totals],[Ottobre]],Personale[[#Totals],[Ottobre]],QuoteeAbbonamenti[[#Totals],[Ottobre]],Svago[[#Totals],[Ottobre]],Vacanze[[#Totals],[Ottobre]],Salute[[#Totals],[Ottobre]],Tempo_libero[[#Totals],[Ottobre]],Trasporti[[#Totals],[Ottobre]],Giornaliere[[#Totals],[Ottobre]],Casa[[#Totals],[Ottobre]])","v":{"v":0,"d":"€ 0.00"}},{"$f":"SUM(Varie[[#Totals],[Novembre]],Finanze[[#Totals],[Novembre]],Personale[[#Totals],[Novembre]],QuoteeAbbonamenti[[#Totals],[Novembre]],Svago[[#Totals],[Novembre]],Vacanze[[#Totals],[Novembre]],Salute[[#Totals],[Novembre]],Tempo_libero[[#Totals],[Novembre]],Trasporti[[#Totals],[Novembre]],Giornaliere[[#Totals],[Novembre]],Casa[[#Totals],[Novembre]])","v":{"v":0,"d":"€ 0.00"}},{"$f":"SUM(Varie[[#Totals],[Dicembre]],Finanze[[#Totals],[Dicembre]],Personale[[#Totals],[Dicembre]],QuoteeAbbonamenti[[#Totals],[Dicembre]],Svago[[#Totals],[Dicembre]],Vacanze[[#Totals],[Dicembre]],Salute[[#Totals],[Dicembre]],Tempo_libero[[#Totals],[Dicembre]],Trasporti[[#Totals],[Dicembre]],Giornaliere[[#Totals],[Dicembre]],Casa[[#Totals],[Dicembre]])","v":{"v":0,"d":"€ 0.00"}},{"$f":"SUM(Varie[[#Totals],[Anno]],Finanze[[#Totals],[Anno]],Personale[[#Totals],[Anno]],QuoteeAbbonamenti[[#Totals],[Anno]],Svago[[#Totals],[Anno]],Vacanze[[#Totals],[Anno]],Salute[[#Totals],[Anno]],Tempo_libero[[#Totals],[Anno]],Trasporti[[#Totals],[Anno]],Giornaliere[[#Totals],[Anno]],Casa[[#Totals],[Anno]])","v":{"v":8834,"d":"€ 8,834.00"}}]
[null,null,"Ammanco/Surplus di cassa",{"$f":"Entrate[[#Totals],[Gennaio]]-D106","v":{"v":1036,"d":"€ 1,036.00"}},{"$f":"Entrate[[#Totals],[Febbraio]]-E106","v":{"v":127,"d":"€ 127.00"}},{"$f":"Entrate[[#Totals],[Marzo]]-F106","v":{"v":926,"d":"€ 926.00"}},{"$f":"Entrate[[#Totals],[Aprile]]-G106","v":{"v":0,"d":"€ 0.00"}},{"$f":"Entrate[[#Totals],[Maggio]]-H106","v":{"v":0,"d":"€ 0.00"}},{"$f":"Entrate[[#Totals],[Giugno]]-I106","v":{"v":0,"d":"€ 0.00"}},{"$f":"Entrate[[#Totals],[Luglio]]-J106","v":{"v":0,"d":"€ 0.00"}},{"$f":"Entrate[[#Totals],[Agosto]]-K106","v":{"v":0,"d":"€ 0.00"}},{"$f":"Entrate[[#Totals],[Settembre]]-L106","v":{"v":0,"d":"€ 0.00"}},{"$f":"Entrate[[#Totals],[Ottobre]]-M106","v":{"v":0,"d":"€ 0.00"}},{"$f":"Entrate[[#Totals],[Novembre]]-N106","v":{"v":0,"d":"€ 0.00"}},{"$f":"Entrate[[#Totals],[Dicembre]]-O106","v":{"v":0,"d":"€ 0.00"}},{"$f":"Entrate[[#Totals],[Anno]]-P106","v":{"v":2089,"d":"€ 2,089.00"}}]